Workbook

Sheet calc
A1: Standard Deviation on One Obs. | B1: 2 | G1: 2017-02-11 | H1: *
A2: Degrees of Freedom | B2: 8 | G2: (M. Casquilho) Jesper FRICKMANN | H2: *
A3: Replicates, A ------ rA = | B3: 5 | E3: Standard Deviation on A - B | F3: =SQRT(1/B3+1/B4)*B1 -> 1.264911064 | H3: *
A4: Replicates, B ------ rB = | B4: 5 | E4: Critical t-value | F4: =TINV(5%,B2) -> 2.306004135 | H4: *
A5: True Difference Between A and B | B5: 4 | E5: Probability of significant t-test | F5: =nctdist(-$F$4,$B$2,B5/$F$3)+1-nctdist($F$4,$B$2,B5/$F$3) -> 0.7905425483 | H5: *
C6: tnc = crit_t_val = | D6: =$F$4 -> 2.306004135 | E6: Prob = nctdist(-tnc) + 1 - nctdist(tnc)
C7: idf = | D7: =$B$2 -> 8 | F7: nctdist(-tnc) = | G7: =nctdist(-$D$6,$D$7,$D$8) -> 7.976908492e-07 | H7: *
A8: N = | B8: 30 | C8: delta = | D8: =$B$5/$F$3 -> 3.16227766 | F8: nctdist(+tnc) = | G8: =nctdist($D$6,$D$7,$D$8) -> 0.2094582494
A9: True Difference | B9: d = TD / sAB | C9: Probability | F9: Prob = | G9: =$G$7+1-$G$8 -> 0.7905425483 | H9: *
A10: 0 | B10: =$A10/$F$3 -> 0 | C10: =nctdist(-$F$4,$B$2,$B10)+1-nctdist($F$4,$B$2,$B10) -> 0.05 | H10: *
A11: =A10+2*$B$5/$B$8 -> 0.2666666667 | B11: =$A11/$F$3 -> 0.2108185107 | C11: 0.05400906634 | H11: *
A12: 0.5333333333 | B12: 0.4216370214 | C12: 0.06613302903 | H12: *
A13: 0.8 | B13: 0.632455532 | C13: 0.08663031794 | H13: *
A14: 1.066666667 | B14: 0.8432740427 | C14: 0.1158093048 | H14: *
A15: 1.333333333 | B15: 1.054092553 | C15: 0.1538716061 | H15: *
A16: 1.6 | B16: 1.264911064 | C16: 0.2007402372 | H16: *
A17: 1.866666667 | B17: 1.475729575 | C17: 0.2559044308 | H17: *
A18: 2.133333333 | B18: 1.686548085 | C18: 0.3183295362 | H18: *
A19: 2.4 | B19: 1.897366596 | C19: 0.3864373573 | H19: *
A20: 2.666666667 | B20: 2.108185107 | C20: 0.4581839717 | H20: *
A21: 2.933333333 | B21: 2.319003617 | C21: 0.5312152475 | H21: *
A22: 3.2 | B22: 2.529822128 | C22: 0.6030844747 | H22: *
A23: 3.466666667 | B23: 2.740640639 | C23: 0.6714831479 | H23: *
A24: 3.733333333 | B24: 2.951459149 | C24: 0.7344520241 | H24: *
A25: 4 | B25: 3.16227766 | C25: 0.7905425483 | H25: *
A26: 4.266666667 | B26: 3.373096171 | C26: 0.8388958109 | H26: *
A27: 4.533333333 | B27: 3.583914682 | C27: 0.8792422587 | H27: *
A28: 4.8 | B28: 3.794733192 | C28: 0.9118354084 | H28: *
A29: 5.066666667 | B29: 4.005551703 | C29: 0.9373310233 | H29: *
A30: 5.333333333 | B30: 4.216370214 | C30: 0.956645372 | H30: *
A31: 5.6 | B31: 4.427188724 | C31: 0.9708189199 | H31: *
A32: 5.866666667 | B32: 4.638007235 | C32: 0.9808948292 | H32: *
A33: 6.133333333 | B33: 4.848825746 | C33: 0.987836055 | H33: *
A34: 6.4 | B34: 5.059644256 | C34: 0.9924695201 | H34: *
A35: 6.666666667 | B35: 5.270462767 | C35: 0.9954679417 | H35: *
A36: 6.933333333 | B36: 5.481281278 | C36: 0.9973484573 | H36: *
A37: 7.2 | B37: 5.692099788 | C37: 0.9984923082 | H37: *
A38: 7.466666667 | B38: 5.902918299 | C38: 0.9991668926 | H38: *
A39: 7.733333333 | B39: 6.11373681 | C39: 0.9995524603 | H39: *
H40: *
A41: =A39+2*$B$5/30 -> 8 | B41: =nctdist(-$F$4,$B$2,A41/$F$3)+1-nctdist($F$4,$B$2,A41/$F$3) -> 0.9997664733

Sheet noncentralt
A1: 2017-02-13 | C1: Table of noncentral t distribution
E2: -21 | F2: -1
A3: n = | B3: 5 | D3: tmin, tmax = | E3: -13 | F3: -3 | G3: Pmin, Pmax = | H3: 0.02 | I3: 0.98
A4: idf = | B4: =$B3-1 -> 4 | D4: k = | E4: 10
C5: -18.73 | D5: -17.62 | E5: -16.6 | F5: -15.58 | G5: -14.2 | H5: -12.86 | I5: Max(Min)
C6: =nctdist(C5,$B$4,C$12) -> 0.0200156166 | D6: =nctdist(D5,$B$4,D$12) -> 0.02001935909 | E6: =nctdist(E5,$B$4,E$12) -> 0.01996181588 | F6: =nctdist(F5,$B$4,F$12) -> 0.01995627245 | G6: =nctdist(G5,$B$4,G$12) -> 0.02003893566 | H6: =nctdist(H5,$B$4,H$12) -> 0.02001751901
C7: -3.04 | D7: -2.79 | E7: -2.552 | F7: -2.31 | G7: -1.977 | H7: -1.632 | I7: Min(Max)
C8: =nctdist(C7,$B$4,C$12) -> 0.9799763019 | D8: =nctdist(D7,$B$4,D$12) -> 0.9799670468 | E8: =nctdist(E7,$B$4,E$12) -> 0.9799688023 | F8: =nctdist(F7,$B$4,F$12) -> 0.9800309609 | G8: =nctdist(G7,$B$4,G$12) -> 0.9800413426 | H8: =nctdist(H7,$B$4,H$12) -> 0.9800454867
B10: min | C10: =MIN(C15:C25) -> 0.0727900305 | D10: =MIN(D15:D25) -> 0.05905749172 | E10: 0.0478663897 | F10: 0.03826940276 | G10: 0.02758463414 | H10: 0.01924373226
B11: max | C11: =MAX(C15:C25) -> 0.9817778578 | D11: =MAX(D15:D25) -> 0.9678992958 | E11: 0.9477457789 | F11: 0.91860618 | G11: 0.8613511591 | H11: 0.7805999494
B12: d = | C12: =SQRT($B$3)*NORMSINV(C$13) -> -5.930208372 | D12: =SQRT($B$3)*NORMSINV(D$13) -> -5.55387698 | E12: =SQRT($B$3)*NORMSINV(E$13) -> -5.201871986 | F12: =SQRT($B$3)*NORMSINV(F$13) -> -4.852469602 | G12: =SQRT($B$3)*NORMSINV(G$13) -> -4.382612703 | H12: =SQRT($B$3)*NORMSINV(H$13) -> -3.914653063
B13: AQL: | C13: 0.004 | D13: 0.0065 | E13: 0.01 | F13: 0.015 | G13: 0.025 | H13: 0.04
A14: i | B14: t | D14: Probability --- T_nc(t; idf, delta)
A15: 0 | B15: =$E$3+$A15*($F$3-$E$3)/$E$4 -> -13 | C15: =nctdist($B15,$B$4,C$12) -> 0.0727900305 | D15: =nctdist($B15,$B$4,D$12) -> 0.05905749172 | E15: =nctdist($B15,$B$4,E$12) -> 0.0478663897 | F15: =nctdist($B15,$B$4,F$12) -> 0.03826940276 | G15: =nctdist($B15,$B$4,G$12) -> 0.02758463414 | H15: =nctdist($B15,$B$4,H$12) -> 0.01924373226 | I15: MIN | J15: =MIN(C15:H25) -> 0.01924373226
A16: =$A15+1 -> 1 | B16: =$E$3+$A16*($F$3-$E$3)/$E$4 -> -12 | C16: =nctdist($B16,$B$4,C$12) -> 0.09485877794 | D16: =nctdist($B16,$B$4,D$12) -> 0.0773666269 | E16: =nctdist($B16,$B$4,E$12) -> 0.06299767678 | F16: =nctdist($B16,$B$4,F$12) -> 0.05058676444 | G16: =nctdist($B16,$B$4,G$12) -> 0.03666233574 | H16: =nctdist($B16,$B$4,H$12) -> 0.02570390859 | I16: MAX | J16: =MAX(C15:H25) -> 0.9817778578
A17: =$A16+1 -> 2 | B17: -11 | C17: =nctdist($B17,$B$4,C$12) -> 0.1252556577 | D17: =nctdist($B17,$B$4,D$12) -> 0.1028306292 | E17: =nctdist($B17,$B$4,E$12) -> 0.08422181962 | F17: =nctdist($B17,$B$4,F$12) -> 0.06800128978 | G17: =nctdist($B17,$B$4,G$12) -> 0.0496233475 | H17: =nctdist($B17,$B$4,H$12) -> 0.03500977879
A18: 3 | B18: -10 | C18: =nctdist($B18,$B$4,C$12) -> 0.1675427762 | D18: =nctdist($B18,$B$4,D$12) -> 0.1386998715 | E18: =nctdist($B18,$B$4,E$12) -> 0.1144480316 | F18: =nctdist($B18,$B$4,F$12) -> 0.09305629855 | G18: =nctdist($B18,$B$4,G$12) -> 0.06850848588 | H18: =nctdist($B18,$B$4,H$12) -> 0.04872482871
A19: 4 | B19: -9 | C19: =nctdist($B19,$B$4,C$12) -> 0.226714001 | D19: =nctdist($B19,$B$4,D$12) -> 0.189721199 | E19: =nctdist($B19,$B$4,E$12) -> 0.1580670137 | F19: =nctdist($B19,$B$4,F$12) -> 0.1297015215 | G19: =nctdist($B19,$B$4,G$12) -> 0.09659404946 | H19: =nctdist($B19,$B$4,H$12) -> 0.06943064956
A20: 5 | B20: -8 | C20: =nctdist($B20,$B$4,C$12) -> 0.3093003225 | D20: =nctdist($B20,$B$4,D$12) -> 0.2625276455 | E20: =nctdist($B20,$B$4,E$12) -> 0.2215344078 | F20: =nctdist($B20,$B$4,F$12) -> 0.183997887 | G20: =nctdist($B20,$B$4,G$12) -> 0.1391555643 | H20: =nctdist($B20,$B$4,H$12) -> 0.101453359
A21: 6 | B21: -7 | C21: =nctdist($B21,$B$4,C$12) -> 0.4224075905 | D21: =nctdist($B21,$B$4,D$12) -> 0.3653606911 | E21: =nctdist($B21,$B$4,E$12) -> 0.3136390517 | F21: =nctdist($B21,$B$4,F$12) -> 0.2648085618 | G21: =nctdist($B21,$B$4,G$12) -> 0.2045218493 | H21: =nctdist($B21,$B$4,H$12) -> 0.1520490619
A22: 7 | B22: -6 | C22: =nctdist($B22,$B$4,C$12) -> 0.5696273466 | D22: =nctdist($B22,$B$4,D$12) -> 0.5052784204 | E22: =nctdist($B22,$B$4,E$12) -> 0.4439511816 | F22: =nctdist($B22,$B$4,F$12) -> 0.3833845905 | G22: =nctdist($B22,$B$4,G$12) -> 0.3048856364 | H22: =nctdist($B22,$B$4,H$12) -> 0.2329852767
A23: 8 | B23: -5 | C23: =nctdist($B23,$B$4,C$12) -> 0.7405129314 | D23: =nctdist($B23,$B$4,D$12) -> 0.6788365544 | E23: =nctdist($B23,$B$4,E$12) -> 0.6153459927 | F23: =nctdist($B23,$B$4,F$12) -> 0.5481216457 | G23: =nctdist($B23,$B$4,G$12) -> 0.4541732095 | H23: =nctdist($B23,$B$4,H$12) -> 0.3610629776
A24: 9 | B24: -4 | C24: =nctdist($B24,$B$4,C$12) -> 0.8960565416 | D24: =nctdist($B24,$B$4,D$12) -> 0.8540111577 | E24: =nctdist($B24,$B$4,E$12) -> 0.8049180567 | F24: =nctdist($B24,$B$4,F$12) -> 0.7466667357 | G24: =nctdist($B24,$B$4,G$12) -> 0.6545192201 | H24: =nctdist($B24,$B$4,H$12) -> 0.5506218119
A25: 10 | B25: -3 | C25: =nctdist($B25,$B$4,C$12) -> 0.9817778578 | D25: =nctdist($B25,$B$4,D$12) -> 0.9678992958 | E25: =nctdist($B25,$B$4,E$12) -> 0.9477457789 | F25: =nctdist($B25,$B$4,F$12) -> 0.91860618 | G25: =nctdist($B25,$B$4,G$12) -> 0.8613511591 | H25: =nctdist($B25,$B$4,H$12) -> 0.7805999494
